[Event "Titled Tuesday Blitz March 29 Early 2022"]
[White "Terletsky, Oleg"]
[Black "Jary, Sergey"]
[WhiteFideId "14116774"]
[BlackFideId "14110350"]
[WhiteElo "2064"]
[BlackElo "2260"]
[Result "0-1"]
[Round "03"]
[TimeControl "180+1"]
[Date "2022.03.30"]
[WhiteClock "0:00:06"]
[BlackClock "0:00:52"]

1. e4 {[%clk 0:03:00]}  c5 {[%clk 0:02:59]} 2. Nf3 {[%clk 0:02:54]}  Nc6 {[%clk 0:03:00]} 3. d4 {[%clk 0:02:54]}  cxd4 {[%clk 0:02:59]} 4. Nxd4 {[%clk 0:02:55]}  g6 {[%clk 0:03:00]} 5. c4 {[%clk 0:02:55]}  Nf6 {[%clk 0:02:54]} 6. Nc3 {[%clk 0:02:54]}  d6 {[%clk 0:02:46]} 7. Be2 {[%clk 0:02:51]}  Nxd4 {[%clk 0:02:46]} 8. Qxd4 {[%clk 0:02:51]}  Bg7 {[%clk 0:02:47]} 9. Be3 {[%clk 0:02:51]}  O-O {[%clk 0:02:34]} 10. Qd2 {[%clk 0:02:52]}  Be6 {[%clk 0:02:35]} 11. Rc1 {[%clk 0:02:47]}  Qa5 {[%clk 0:02:35]} 12. f3 {[%clk 0:02:43]}  Rfc8 {[%clk 0:02:33]} 13. b3 {[%clk 0:02:43]}  a6 {[%clk 0:02:18]} 14. Na4 {[%clk 0:02:43]}  Qxd2+ {[%clk 0:02:14]} 15. Kxd2 {[%clk 0:02:44]}  Nd7 {[%clk 0:02:14]} 16. Nb6 {[%clk 0:02:31]}  Nxb6 {[%clk 0:02:10]} 17. Bxb6 {[%clk 0:02:32]}  Rc6 {[%clk 0:02:11]} 18. Be3 {[%clk 0:02:30]}  Bb2 {[%clk 0:02:05]} 19. Rc2 {[%clk 0:02:22]}  Ba3 {[%clk 0:02:05]} 20. Bd3 {[%clk 0:02:21]}  Rac8 {[%clk 0:02:03]} 21. g4 {[%clk 0:01:17]}  Bc5 {[%clk 0:02:01]} 22. Rhc1 {[%clk 0:01:10]}  Ba3 {[%clk 0:01:55]} 23. Rb1 {[%clk 0:01:05]}  b5 {[%clk 0:01:55]} 24. cxb5 {[%clk 0:01:03]}  Rxc2+ {[%clk 0:01:54]} 25. Bxc2 {[%clk 0:01:03]}  axb5 {[%clk 0:01:55]} 26. Bd3 {[%clk 0:00:50]}  Bd7 {[%clk 0:01:54]} 27. b4 {[%clk 0:00:38]}  Be6 {[%clk 0:01:50]} 28. Bxb5 {[%clk 0:00:27]}  Bxa2 {[%clk 0:01:41]} 29. Ra1 {[%clk 0:00:20]}  Bxb4+ {[%clk 0:01:41]} 30. Kd3 {[%clk 0:00:17]}  Be6 {[%clk 0:01:35]} 31. Rc1 {[%clk 0:00:17]}  Ra8 {[%clk 0:01:28]} 32. Bc4 {[%clk 0:00:17]}  Ra3+ {[%clk 0:01:24]} 33. Ke2 {[%clk 0:00:14]}  Bc3 {[%clk 0:01:20]} 34. Bxe6 {[%clk 0:00:12]}  fxe6 {[%clk 0:01:20]} 35. Rc2 {[%clk 0:00:12]}  Kf7 {[%clk 0:01:14]} 36. h4 {[%clk 0:00:12]}  Bf6 {[%clk 0:01:10]} 37. h5 {[%clk 0:00:12]}  gxh5 {[%clk 0:01:05]} 38. gxh5 {[%clk 0:00:13]}  Ra5 {[%clk 0:01:06]} 39. h6 {[%clk 0:00:12]}  Bg5 {[%clk 0:01:02]} 40. Bxg5 {[%clk 0:00:09]}  Rxg5 {[%clk 0:01:02]} 41. Rc8 {[%clk 0:00:09]}  Rg8 {[%clk 0:00:56]} 42. Rc7 {[%clk 0:00:08]}  Rg6 {[%clk 0:00:56]} 43. Ke3 {[%clk 0:00:08]}  Rxh6 {[%clk 0:00:56]} 44. Rc8 {[%clk 0:00:07]}  Rh1 {[%clk 0:00:55]} 45. Rh8 {[%clk 0:00:07]}  h5 {[%clk 0:00:54]} 46. Rh7+ {[%clk 0:00:06]}  Ke8 {[%clk 0:00:55]} 47. e5 {[%clk 0:00:06]}  Re1+ {[%clk 0:00:52]} 0-1


[Site "https://www.chess.com"]

[Event "Titled Tuesday Blitz March 29 Early 2022"]
[White "Tomb, Maroun"]
[Black "Costachi, Mihnea"]
[WhiteFideId "5300398"]
[BlackFideId "1217518"]
[WhiteElo "2519"]
[BlackElo "2464"]
[Result "0-1"]
[Round "03"]
[TimeControl "180+1"]
[Date "2022.03.30"]
[WhiteClock "0:00:18"]
[BlackClock "0:01:27"]

1. e4 {[%clk 0:02:59]}  c5 {[%clk 0:02:58]} 2. Ne2 {[%clk 0:02:59]}  Nc6 {[%clk 0:02:58]} 3. Nbc3 {[%clk 0:02:59]}  e6 {[%clk 0:02:58]} 4. g3 {[%clk 0:02:59]}  d5 {[%clk 0:02:58]} 5. exd5 {[%clk 0:02:59]}  exd5 {[%clk 0:02:58]} 6. d4 {[%clk 0:02:59]}  Nf6 {[%clk 0:02:57]} 7. Bg2 {[%clk 0:02:59]}  cxd4 {[%clk 0:02:57]} 8. Nxd4 {[%clk 0:02:59]}  Bc5 {[%clk 0:02:57]} 9. Nb3 {[%clk 0:02:57]}  Bb4 {[%clk 0:02:53]} 10. O-O {[%clk 0:02:56]}  Bxc3 {[%clk 0:02:54]} 11. bxc3 {[%clk 0:02:56]}  O-O {[%clk 0:02:54]} 12. Bg5 {[%clk 0:02:54]}  h6 {[%clk 0:02:55]} 13. Bxf6 {[%clk 0:02:53]}  Qxf6 {[%clk 0:02:55]} 14. Qxd5 {[%clk 0:02:53]}  Qxc3 {[%clk 0:02:54]} 15. Qc5 {[%clk 0:02:48]}  Qf6 {[%clk 0:02:49]} 16. Rad1 {[%clk 0:02:32]}  Bg4 {[%clk 0:02:49]} 17. Rd6 {[%clk 0:02:31]}  Qb2 {[%clk 0:02:47]} 18. Bxc6 {[%clk 0:02:26]}  bxc6 {[%clk 0:02:46]} 19. Qd4 {[%clk 0:02:25]}  Qxd4 {[%clk 0:02:42]} 20. Nxd4 {[%clk 0:02:24]}  c5 {[%clk 0:02:36]} 21. Nc6 {[%clk 0:02:16]}  Rfe8 {[%clk 0:02:35]} 22. f3 {[%clk 0:01:18]}  Bh3 {[%clk 0:02:31]} 23. Rfd1 {[%clk 0:01:15]}  Re2 {[%clk 0:02:30]} 24. R6d2 {[%clk 0:01:12]}  Rae8 {[%clk 0:02:29]} 25. Nxa7 {[%clk 0:01:06]}  Rxd2 {[%clk 0:02:12]} 26. Rxd2 {[%clk 0:01:07]}  Ra8 {[%clk 0:02:13]} 27. Nc6 {[%clk 0:01:00]}  Rxa2 {[%clk 0:02:13]} 28. Ne5 {[%clk 0:00:59]}  f6 {[%clk 0:02:08]} 29. Nd7 {[%clk 0:00:58]}  Bxd7 {[%clk 0:02:07]} 30. Rxd7 {[%clk 0:00:58]}  Rxc2 {[%clk 0:02:07]} 31. h4 {[%clk 0:00:52]}  h5 {[%clk 0:02:07]} 32. Kf1 {[%clk 0:00:49]}  c4 {[%clk 0:02:07]} 33. Ke1 {[%clk 0:00:49]}  c3 {[%clk 0:02:02]} 34. Rc7 {[%clk 0:00:46]}  Kh7 {[%clk 0:02:00]} 35. Kd1 {[%clk 0:00:46]}  Rd2+ {[%clk 0:01:59]} 36. Ke1 {[%clk 0:00:45]}  Rc2 {[%clk 0:01:56]} 37. Kd1 {[%clk 0:00:45]}  Rg2 {[%clk 0:01:57]} 38. Rxc3 {[%clk 0:00:43]}  Rxg3 {[%clk 0:01:57]} 39. Ke2 {[%clk 0:00:43]}  Kg6 {[%clk 0:01:50]} 40. Kf2 {[%clk 0:00:40]}  Rh3 {[%clk 0:01:49]} 41. Rc4 {[%clk 0:00:40]}  Rh2+ {[%clk 0:01:48]} 42. Kg3 {[%clk 0:00:40]}  Ra2 {[%clk 0:01:49]} 43. Rc5 {[%clk 0:00:38]}  Ra1 {[%clk 0:01:47]} 44. Rb5 {[%clk 0:00:38]}  Ra7 {[%clk 0:01:46]} 45. Rc5 {[%clk 0:00:38]}  Re7 {[%clk 0:01:47]} 46. Ra5 {[%clk 0:00:38]}  Re5 {[%clk 0:01:47]} 47. Ra7 {[%clk 0:00:37]}  Kh6 {[%clk 0:01:47]} 48. Ra8 {[%clk 0:00:37]}  Rb5 {[%clk 0:01:45]} 49. Rc8 {[%clk 0:00:36]}  g5 {[%clk 0:01:45]} 50. hxg5+ {[%clk 0:00:35]}  Kxg5 {[%clk 0:01:45]} 51. Rg8+ {[%clk 0:00:34]}  Kf5 {[%clk 0:01:44]} 52. Rh8 {[%clk 0:00:35]}  Kg6 {[%clk 0:01:44]} 53. Rg8+ {[%clk 0:00:35]}  Kf7 {[%clk 0:01:44]} 54. Rh8 {[%clk 0:00:35]}  Kg7 {[%clk 0:01:44]} 55. Rc8 {[%clk 0:00:35]}  Rb4 {[%clk 0:01:45]} 56. Rd8 {[%clk 0:00:34]}  Kg6 {[%clk 0:01:44]} 57. Rg8+ {[%clk 0:00:34]}  Kf5 {[%clk 0:01:45]} 58. Rh8 {[%clk 0:00:35]}  h4+ {[%clk 0:01:45]} 59. Kh3 {[%clk 0:00:31]}  Kg5 {[%clk 0:01:45]} 60. Rg8+ {[%clk 0:00:30]}  Kf5 {[%clk 0:01:45]} 61. Rh8 {[%clk 0:00:31]}  Ke5 {[%clk 0:01:45]} 62. Rg8 {[%clk 0:00:28]}  f5 {[%clk 0:01:44]} 63. Re8+ {[%clk 0:00:24]}  Kf4 {[%clk 0:01:44]} 64. Kxh4 {[%clk 0:00:24]}  Kxf3+ {[%clk 0:01:44]} 65. Kh3 {[%clk 0:00:25]}  f4 {[%clk 0:01:41]} 66. Re7 {[%clk 0:00:23]}  Kf2 {[%clk 0:01:37]} 67. Kh2 {[%clk 0:00:23]}  f3 {[%clk 0:01:37]} 68. Rh7 {[%clk 0:00:20]}  Rg4 {[%clk 0:01:31]} 69. Rh8 {[%clk 0:00:20]}  Kf1 {[%clk 0:01:30]} 70. Kh3 {[%clk 0:00:19]}  Rg7 {[%clk 0:01:29]} 71. Rf8 {[%clk 0:00:19]}  f2 {[%clk 0:01:29]} 72. Re8 {[%clk 0:00:19]}  Kg1 {[%clk 0:01:28]} 73. Re1+ {[%clk 0:00:18]}  fxe1=R {[%clk 0:01:27]} 0-1


[Site "https://www.chess.com"]

[Event "Titled Tuesday Blitz March 29 Early 2022"]
[White "Tymrakiewicz, Rafal"]
[Black "Osmonbekov, Talaibek"]
[WhiteFideId "1108832"]
[BlackFideId "2017253"]
[WhiteElo "2205"]
[BlackElo "2135"]
[Result "1-0"]
[Round "03"]
[TimeControl "180+1"]
[Date "2022.03.30"]
[WhiteClock "0:00:23"]
[BlackClock "0:00:39"]

1. d4 {[%clk 0:03:00]}  e6 {[%clk 0:02:59]} 2. e4 {[%clk 0:02:57]}  d5 {[%clk 0:02:59]} 3. e5 {[%clk 0:02:57]}  c5 {[%clk 0:02:58]} 4. c3 {[%clk 0:02:58]}  Nc6 {[%clk 0:02:59]} 5. Nf3 {[%clk 0:02:58]}  Bd7 {[%clk 0:02:59]} 6. Bd3 {[%clk 0:02:57]}  Rc8 {[%clk 0:02:56]} 7. dxc5 {[%clk 0:02:47]}  Bxc5 {[%clk 0:02:55]} 8. O-O {[%clk 0:02:48]}  Nge7 {[%clk 0:02:53]} 9. Nbd2 {[%clk 0:02:40]}  Ng6 {[%clk 0:02:51]} 10. Nb3 {[%clk 0:02:36]}  Bb6 {[%clk 0:02:49]} 11. Qe2 {[%clk 0:02:36]}  Bc7 {[%clk 0:02:44]} 12. Bg5 {[%clk 0:02:30]}  Nce7 {[%clk 0:02:33]} 13. Rae1 {[%clk 0:02:24]}  O-O {[%clk 0:02:20]} 14. Nbd4 {[%clk 0:02:15]}  Qe8 {[%clk 0:02:09]} 15. h4 {[%clk 0:02:08]}  a6 {[%clk 0:02:06]} 16. h5 {[%clk 0:02:06]}  Nh8 {[%clk 0:02:04]} 17. h6 {[%clk 0:02:04]}  g6 {[%clk 0:02:03]} 18. Bf6 {[%clk 0:01:56]}  Nf5 {[%clk 0:01:42]} 19. Nxf5 {[%clk 0:01:51]}  exf5 {[%clk 0:01:42]} 20. Nd4 {[%clk 0:01:34]}  Be6 {[%clk 0:01:31]} 21. f4 {[%clk 0:01:29]}  Qd7 {[%clk 0:01:28]} 22. g4 {[%clk 0:01:26]}  fxg4 {[%clk 0:01:24]} 23. f5 {[%clk 0:01:23]}  gxf5 {[%clk 0:01:23]} 24. Nxf5 {[%clk 0:01:21]}  Rfe8 {[%clk 0:01:19]} 25. Nd6 {[%clk 0:00:34]}  Bxd6 {[%clk 0:01:11]} 26. exd6 {[%clk 0:00:34]}  Ng6 {[%clk 0:01:03]} 27. Bxg6 {[%clk 0:00:33]}  fxg6 {[%clk 0:01:01]} 28. Be7 {[%clk 0:00:26]}  Rxe7 {[%clk 0:00:38]} 29. dxe7 {[%clk 0:00:24]}  Bf7 {[%clk 0:00:39]} 30. Qe5 {[%clk 0:00:23]} 1-0


[Site "https://www.chess.com"]

[Event "Titled Tuesday Blitz March 29 Early 2022"]
[White "Vakhlamov, Igor L."]
[Black "Aaditya Dhingra"]
[WhiteFideId "24126748"]
[BlackFideId "25678191"]
[WhiteElo "2401"]
[BlackElo "1849"]
[Result "0-1"]
[Round "03"]
[TimeControl "180+1"]
[Date "2022.03.29"]
[WhiteClock "0:00:22"]
[BlackClock "0:00:07"]

1. e4 {[%clk 0:03:00]}  e5 {[%clk 0:02:58]} 2. Nf3 {[%clk 0:03:00]}  Nc6 {[%clk 0:02:59]} 3. Nc3 {[%clk 0:03:00]}  Nf6 {[%clk 0:02:58]} 4. Bb5 {[%clk 0:03:01]}  Bb4 {[%clk 0:02:57]} 5. Nd5 {[%clk 0:03:01]}  Ba5 {[%clk 0:02:40]} 6. O-O {[%clk 0:03:00]}  a6 {[%clk 0:02:36]} 7. Ba4 {[%clk 0:02:56]}  O-O {[%clk 0:02:34]} 8. d4 {[%clk 0:02:55]}  Nxd5 {[%clk 0:02:28]} 9. exd5 {[%clk 0:02:56]}  Nxd4 {[%clk 0:02:28]} 10. Nxd4 {[%clk 0:02:53]}  exd4 {[%clk 0:02:27]} 11. Qxd4 {[%clk 0:02:37]}  d6 {[%clk 0:02:27]} 12. c3 {[%clk 0:02:25]}  Bf5 {[%clk 0:02:24]} 13. Re1 {[%clk 0:02:23]}  b5 {[%clk 0:02:22]} 14. Bb3 {[%clk 0:02:20]}  Re8 {[%clk 0:02:21]} 15. Bf4 {[%clk 0:02:12]}  Qh4 {[%clk 0:02:15]} 16. Qd2 {[%clk 0:01:54]}  Bb6 {[%clk 0:02:10]} 17. Bg3 {[%clk 0:01:53]}  Qf6 {[%clk 0:02:07]} 18. a4 {[%clk 0:01:51]}  h5 {[%clk 0:02:01]} 19. h4 {[%clk 0:01:51]}  Qg6 {[%clk 0:01:53]} 20. Kh2 {[%clk 0:01:51]}  Bd3 {[%clk 0:01:36]} 21. Rad1 {[%clk 0:01:40]}  Be4 {[%clk 0:01:31]} 22. Re2 {[%clk 0:01:24]}  f6 {[%clk 0:01:20]} 23. Rde1 {[%clk 0:01:22]}  Bf5 {[%clk 0:01:20]} 24. Qf4 {[%clk 0:01:18]}  Rxe2 {[%clk 0:01:17]} 25. Rxe2 {[%clk 0:01:19]}  Qg4 {[%clk 0:01:11]} 26. f3 {[%clk 0:00:55]}  Qxf4 {[%clk 0:01:10]} 27. Bxf4 {[%clk 0:00:56]}  Kf7 {[%clk 0:01:08]} 28. g3 {[%clk 0:00:48]}  Rg8 {[%clk 0:01:05]} 29. axb5 {[%clk 0:00:33]}  axb5 {[%clk 0:01:04]} 30. Bc2 {[%clk 0:00:34]}  Bxc2 {[%clk 0:00:59]} 31. Rxc2 {[%clk 0:00:35]}  Re8 {[%clk 0:00:47]} 32. g4 {[%clk 0:00:32]}  hxg4 {[%clk 0:00:46]} 33. fxg4 {[%clk 0:00:33]}  Re1 {[%clk 0:00:39]} 34. Kg2 {[%clk 0:00:30]}  Rd1 {[%clk 0:00:38]} 35. Rd2 {[%clk 0:00:30]}  Re1 {[%clk 0:00:35]} 36. h5 {[%clk 0:00:29]}  Be3 {[%clk 0:00:31]} 37. Bxe3 {[%clk 0:00:27]}  Rxe3 {[%clk 0:00:32]} 38. Kf2 {[%clk 0:00:28]}  Rh3 {[%clk 0:00:29]} 39. Re2 {[%clk 0:00:22]}  Rd3 {[%clk 0:00:28]} 40. Re4 {[%clk 0:00:13]}  Rxd5 {[%clk 0:00:27]} 41. Kf3 {[%clk 0:00:13]}  Rd3+ {[%clk 0:00:24]} 42. Kf4 {[%clk 0:00:13]}  c5 {[%clk 0:00:22]} 43. Re2 {[%clk 0:00:11]}  Rd1 {[%clk 0:00:20]} 44. Ke4 {[%clk 0:00:09]}  d5+ {[%clk 0:00:20]} 45. Kf4 {[%clk 0:00:09]}  Rf1+ {[%clk 0:00:20]} 46. Ke3 {[%clk 0:00:09]}  Ke6 {[%clk 0:00:20]} 47. Rh2 {[%clk 0:00:09]}  Kd6 {[%clk 0:00:19]} 48. h6 {[%clk 0:00:09]}  gxh6 {[%clk 0:00:19]} 49. Rxh6 {[%clk 0:00:10]}  Ke5 {[%clk 0:00:20]} 50. Rh5+ {[%clk 0:00:11]}  Ke6 {[%clk 0:00:20]} 51. Rh6 {[%clk 0:00:11]}  Ke5 {[%clk 0:00:20]} 52. Rh5+ {[%clk 0:00:11]}  f5 {[%clk 0:00:20]} 53. gxf5 {[%clk 0:00:12]}  Rxf5 {[%clk 0:00:19]} 54. Rh8 {[%clk 0:00:12]}  Rg5 {[%clk 0:00:18]} 55. Rb8 {[%clk 0:00:12]}  b4 {[%clk 0:00:17]} 56. cxb4 {[%clk 0:00:13]}  cxb4 {[%clk 0:00:16]} 57. Rxb4 {[%clk 0:00:14]}  d4+ {[%clk 0:00:15]} 58. Kf3 {[%clk 0:00:10]}  Rf5+ {[%clk 0:00:14]} 59. Ke2 {[%clk 0:00:10]}  Ke4 {[%clk 0:00:14]} 60. Ra4 {[%clk 0:00:11]}  Rh5 {[%clk 0:00:14]} 61. Rb4 {[%clk 0:00:11]}  Rh2+ {[%clk 0:00:14]} 62. Kd1 {[%clk 0:00:05]}  Ke3 {[%clk 0:00:14]} 63. Rb8 {[%clk 0:00:04]}  Rh1+ {[%clk 0:00:08]} 64. Kc2 {[%clk 0:00:04]}  d3+ {[%clk 0:00:06]} 65. Kc3 {[%clk 0:00:04]}  Rc1+ {[%clk 0:00:06]} 66. Kb3 {[%clk 0:00:03]}  d2 {[%clk 0:00:07]} 67. Re8+ {[%clk 0:00:04]}  Kf4 {[%clk 0:00:06]} 68. Rf8+ {[%clk 0:00:05]}  Ke5 {[%clk 0:00:05]} 69. Re8+ {[%clk 0:00:05]}  Kf6 {[%clk 0:00:06]} 70. Rd8 {[%clk 0:00:04]}  d1=Q+ {[%clk 0:00:06]} 71. Rxd1 {[%clk 0:00:05]}  Rxd1 {[%clk 0:00:06]} 72. Kc4 {[%clk 0:00:05]}  Ke6 {[%clk 0:00:06]} 73. b4 {[%clk 0:00:06]}  Kd7 {[%clk 0:00:06]} 74. Kb5 {[%clk 0:00:07]}  Kc7 {[%clk 0:00:07]} 75. Ka6 {[%clk 0:00:08]}  Kb8 {[%clk 0:00:07]} 76. Kb6 {[%clk 0:00:08]}  Rd6+ {[%clk 0:00:06]} 77. Kc5 {[%clk 0:00:08]}  Kc7 {[%clk 0:00:06]} 78. Kb5 {[%clk 0:00:09]}  Re6 {[%clk 0:00:06]} 79. Kc5 {[%clk 0:00:10]}  Kb7 {[%clk 0:00:06]} 80. Kb5 {[%clk 0:00:11]}  Re5+ {[%clk 0:00:07]} 81. Kc4 {[%clk 0:00:11]}  Kb6 {[%clk 0:00:07]} 82. Kd4 {[%clk 0:00:12]}  Rh5 {[%clk 0:00:07]} 83. Kc4 {[%clk 0:00:13]}  Kc6 {[%clk 0:00:08]} 84. Kb3 {[%clk 0:00:13]}  Kb5 {[%clk 0:00:08]} 85. Ka3 {[%clk 0:00:14]}  Rh3+ {[%clk 0:00:08]} 86. Ka2 {[%clk 0:00:15]}  Kxb4 {[%clk 0:00:09]} 87. Kb2 {[%clk 0:00:15]}  Rh2+ {[%clk 0:00:09]} 88. Kc1 {[%clk 0:00:16]}  Kc3 {[%clk 0:00:10]} 89. Kd1 {[%clk 0:00:17]}  Kd3 {[%clk 0:00:10]} 90. Ke1 {[%clk 0:00:18]}  Ke3 {[%clk 0:00:10]} 91. Kf1 {[%clk 0:00:18]}  Kf3 {[%clk 0:00:11]} 92. Ke1 {[%clk 0:00:19]}  Rb2 {[%clk 0:00:09]} 93. Kd1 {[%clk 0:00:20]}  Ke3 {[%clk 0:00:09]} 94. Kc1 {[%clk 0:00:20]}  Rb4 {[%clk 0:00:07]} 95. Kc2 {[%clk 0:00:21]}  Kd4 {[%clk 0:00:07]} 96. Kd2 {[%clk 0:00:21]}  Rb2+ {[%clk 0:00:07]} 97. Kc1 {[%clk 0:00:21]}  Kc3 {[%clk 0:00:07]} 98. Kd1 {[%clk 0:00:22]}  Kd3 {[%clk 0:00:07]} 99. Kc1 {[%clk 0:00:22]}  Rb3 {[%clk 0:00:06]} 100. Kd1 {[%clk 0:00:22]}  Rb1# {[%clk 0:00:07]} 0-1


[Site "https://www.chess.com"]

[Event "Titled Tuesday Blitz March 29 Early 2022"]
[White "Vasquez Schroeder, Rodrigo"]
[Black "Yang, Kaiqi"]
[WhiteFideId "3400042"]
[BlackFideId "8604398"]
[WhiteElo "2561"]
[BlackElo "2373"]
[Result "1/2-1/2"]
[Round "03"]
[TimeControl "180+1"]
[Date "2022.03.29"]
[WhiteClock "0:01:27"]
[BlackClock "0:00:18"]

1. e4 {[%clk 0:03:00]}  e6 {[%clk 0:03:00]} 2. d4 {[%clk 0:03:00]}  d5 {[%clk 0:03:00]} 3. Nc3 {[%clk 0:03:01]}  Nf6 {[%clk 0:02:53]} 4. e5 {[%clk 0:03:01]}  Nfd7 {[%clk 0:02:54]} 5. Nce2 {[%clk 0:03:02]}  c5 {[%clk 0:02:53]} 6. c3 {[%clk 0:03:02]}  Nc6 {[%clk 0:02:48]} 7. f4 {[%clk 0:03:02]}  cxd4 {[%clk 0:02:45]} 8. cxd4 {[%clk 0:03:01]}  Bb4+ {[%clk 0:02:35]} 9. Bd2 {[%clk 0:03:01]}  Qb6 {[%clk 0:02:35]} 10. Bxb4 {[%clk 0:03:00]}  Qxb4+ {[%clk 0:02:33]} 11. Qd2 {[%clk 0:03:00]}  f6 {[%clk 0:02:23]} 12. Nf3 {[%clk 0:02:59]}  fxe5 {[%clk 0:02:03]} 13. fxe5 {[%clk 0:02:57]}  O-O {[%clk 0:01:54]} 14. Qxb4 {[%clk 0:02:54]}  Nxb4 {[%clk 0:01:54]} 15. Kd2 {[%clk 0:02:55]}  Nb6 {[%clk 0:01:52]} 16. b3 {[%clk 0:02:55]}  Bd7 {[%clk 0:01:51]} 17. Nc3 {[%clk 0:02:53]}  Be8 {[%clk 0:01:46]} 18. a3 {[%clk 0:02:50]}  Nc6 {[%clk 0:01:45]} 19. Bd3 {[%clk 0:02:45]}  Bh5 {[%clk 0:01:44]} 20. Ke3 {[%clk 0:02:42]}  Bxf3 {[%clk 0:01:35]} 21. gxf3 {[%clk 0:02:41]}  Nc8 {[%clk 0:01:34]} 22. Rac1 {[%clk 0:02:25]}  N8e7 {[%clk 0:01:33]} 23. Nb5 {[%clk 0:02:25]}  Nf5+ {[%clk 0:01:11]} 24. Bxf5 {[%clk 0:02:24]}  Rxf5 {[%clk 0:01:11]} 25. Nd6 {[%clk 0:02:22]}  Rh5 {[%clk 0:00:56]} 26. Nxb7 {[%clk 0:02:21]}  Ne7 {[%clk 0:00:56]} 27. Nd6 {[%clk 0:02:20]}  Nf5+ {[%clk 0:00:43]} 28. Nxf5 {[%clk 0:02:20]}  Rxf5 {[%clk 0:00:44]} 29. h4 {[%clk 0:02:20]}  a5 {[%clk 0:00:33]} 30. Rc3 {[%clk 0:02:17]}  Raf8 {[%clk 0:00:31]} 31. Rh3 {[%clk 0:02:17]}  Rb8 {[%clk 0:00:25]} 32. Rg3 {[%clk 0:02:05]}  h6 {[%clk 0:00:24]} 33. Rg4 {[%clk 0:01:55]}  g5 {[%clk 0:00:15]} 34. hxg5 {[%clk 0:01:54]}  hxg5 {[%clk 0:00:16]} 35. f4 {[%clk 0:01:52]}  Kf7 {[%clk 0:00:16]} 36. Rxg5 {[%clk 0:01:51]}  Rxg5 {[%clk 0:00:16]} 37. fxg5 {[%clk 0:01:52]}  Kg6 {[%clk 0:00:17]} 38. Kf4 {[%clk 0:01:50]}  Rf8+ {[%clk 0:00:17]} 39. Kg4 {[%clk 0:01:49]}  Rf1 {[%clk 0:00:18]} 40. Rc6 {[%clk 0:01:49]}  Rg1+ {[%clk 0:00:17]} 41. Kf3 {[%clk 0:01:49]}  Kf5 {[%clk 0:00:16]} 42. Rc8 {[%clk 0:01:41]}  Rb1 {[%clk 0:00:13]} 43. Rc3 {[%clk 0:01:36]}  Kxg5 {[%clk 0:00:12]} 44. Ke3 {[%clk 0:01:30]}  Kf5 {[%clk 0:00:12]} 45. Rd3 {[%clk 0:01:30]}  Ra1 {[%clk 0:00:13]} 46. a4 {[%clk 0:01:30]}  Rb1 {[%clk 0:00:13]} 47. Rc3 {[%clk 0:01:26]}  Rb2 {[%clk 0:00:13]} 48. Kd3 {[%clk 0:01:25]}  Kf4 {[%clk 0:00:13]} 49. Rc6 {[%clk 0:01:22]}  Rxb3+ {[%clk 0:00:13]} 50. Kc2 {[%clk 0:01:23]}  Rb4 {[%clk 0:00:14]} 51. Kc3 {[%clk 0:01:22]}  Rxa4 {[%clk 0:00:13]} 52. Rxe6 {[%clk 0:01:23]}  Ke4 {[%clk 0:00:12]} 53. Ra6 {[%clk 0:01:23]}  Rc4+ {[%clk 0:00:12]} 54. Kb3 {[%clk 0:01:23]}  Kxd4 {[%clk 0:00:11]} 55. e6 {[%clk 0:01:23]}  Rc7 {[%clk 0:00:11]} 56. Rxa5 {[%clk 0:01:22]}  Re7 {[%clk 0:00:11]} 57. Ra6 {[%clk 0:01:23]}  Ke5 {[%clk 0:00:12]} 58. Kc3 {[%clk 0:01:23]}  Rxe6 {[%clk 0:00:12]} 59. Rxe6+ {[%clk 0:01:23]}  Kxe6 {[%clk 0:00:12]} 60. Kd4 {[%clk 0:01:23]}  Kd6 {[%clk 0:00:13]} 61. Kd3 {[%clk 0:01:24]}  Ke5 {[%clk 0:00:13]} 62. Ke3 {[%clk 0:01:24]}  d4+ {[%clk 0:00:14]} 63. Kd3 {[%clk 0:01:25]}  Kd5 {[%clk 0:00:15]} 64. Kd2 {[%clk 0:01:25]}  Ke5 {[%clk 0:00:16]} 65. Kd3 {[%clk 0:01:26]}  Kd5 {[%clk 0:00:17]} 66. Kd2 {[%clk 0:01:26]}  Kc5 {[%clk 0:00:17]} 67. Kd3 {[%clk 0:01:27]}  Kd5 {[%clk 0:00:18]} 1/2-1/2


[Site "https://www.chess.com"]

[Event "Titled Tuesday Blitz March 29 Early 2022"]
[White "Vovk, Orest"]
[Black "Tregubov, Pavel V."]
[WhiteFideId "14113490"]
[BlackFideId "4115341"]
[WhiteElo "2203"]
[BlackElo "2341"]
[Result "0-1"]
[Round "03"]
[TimeControl "180+1"]
[Date "2022.03.30"]
[WhiteClock "0:01:38"]
[BlackClock "0:02:19"]

1. h4 {[%clk 0:02:31]}  h5 {[%clk 0:02:55]} 2. Nf3 {[%clk 0:02:31]}  Nf6 {[%clk 0:02:54]} 3. Ng5 {[%clk 0:02:31]}  d5 {[%clk 0:02:53]} 4. e4 {[%clk 0:02:30]}  dxe4 {[%clk 0:02:52]} 5. Qe2 {[%clk 0:02:29]}  Nc6 {[%clk 0:02:51]} 6. Nxe4 {[%clk 0:02:28]}  Nd4 {[%clk 0:02:43]} 7. Nxf6+ {[%clk 0:02:27]}  gxf6 {[%clk 0:02:44]} 8. Qd1 {[%clk 0:02:26]}  Bg4 {[%clk 0:02:41]} 9. f3 {[%clk 0:02:23]}  Bf5 {[%clk 0:02:41]} 10. d3 {[%clk 0:02:19]}  Qd6 {[%clk 0:02:42]} 11. Be3 {[%clk 0:02:16]}  Bh6 {[%clk 0:02:30]} 12. Bf2 {[%clk 0:01:46]}  Qe5+ {[%clk 0:02:19]} 13. Be2 {[%clk 0:01:44]}  Nxe2 {[%clk 0:02:19]} 14. Qxe2 {[%clk 0:01:38]}  Qxb2 {[%clk 0:02:19]} 0-1


[Site "https://www.chess.com"]

[Event "Titled Tuesday Blitz March 29 Early 2022"]
[White "Vysochin, Spartak"]
[Black "Shohat, Yotam"]
[WhiteFideId "14103516"]
[BlackFideId "2813955"]
[WhiteElo "2385"]
[BlackElo "2119"]
[Result "1-0"]
[Round "03"]
[TimeControl "180+1"]
[Date "2022.03.30"]
[WhiteClock "0:00:43"]
[BlackClock "0:00:02"]

1. e4 {[%clk 0:03:00]}  c5 {[%clk 0:02:31]} 2. c3 {[%clk 0:02:59]}  e6 {[%clk 0:02:27]} 3. d4 {[%clk 0:02:57]}  d5 {[%clk 0:02:27]} 4. e5 {[%clk 0:02:57]}  Nc6 {[%clk 0:02:26]} 5. Nf3 {[%clk 0:02:57]}  Bd7 {[%clk 0:02:26]} 6. Bd3 {[%clk 0:02:56]}  Rc8 {[%clk 0:02:26]} 7. a3 {[%clk 0:02:46]}  cxd4 {[%clk 0:02:26]} 8. cxd4 {[%clk 0:02:45]}  Qb6 {[%clk 0:02:26]} 9. Bc2 {[%clk 0:02:37]}  g5 {[%clk 0:02:23]} 10. Nc3 {[%clk 0:02:28]}  g4 {[%clk 0:02:17]} 11. Na4 {[%clk 0:02:27]}  Qa5+ {[%clk 0:02:14]} 12. Bd2 {[%clk 0:02:25]}  Qa6 {[%clk 0:01:54]} 13. Ng5 {[%clk 0:02:15]}  Nxd4 {[%clk 0:01:52]} 14. Nc3 {[%clk 0:02:14]}  h6 {[%clk 0:01:39]} 15. Nh7 {[%clk 0:02:10]}  Nxc2+ {[%clk 0:01:26]} 16. Qxc2 {[%clk 0:02:09]}  d4 {[%clk 0:01:27]} 17. Nxf8 {[%clk 0:02:05]}  Kxf8 {[%clk 0:01:16]} 18. O-O-O {[%clk 0:01:53]}  Ba4 {[%clk 0:00:49]} 19. b3 {[%clk 0:01:48]}  dxc3 {[%clk 0:00:26]} 20. Bxc3 {[%clk 0:01:48]}  Qc6 {[%clk 0:00:21]} 21. bxa4 {[%clk 0:01:43]}  Kg7 {[%clk 0:00:10]} 22. Kb2 {[%clk 0:01:25]}  Ne7 {[%clk 0:00:10]} 23. Rd4 {[%clk 0:01:21]}  h5 {[%clk 0:00:08]} 24. Qd2 {[%clk 0:01:18]}  Ng6 {[%clk 0:00:02]} 25. Rc1 {[%clk 0:01:15]}  Qb6+ {[%clk 0:00:01]} 26. Rb4 {[%clk 0:01:14]}  Qc5 {[%clk 0:00:01]} 27. Qg5 {[%clk 0:01:00]}  Qc6 {[%clk 0:00:01]} 28. Qf6+ {[%clk 0:00:58]}  Kg8 {[%clk 0:00:02]} 29. Bd2 {[%clk 0:00:57]}  Qd7 {[%clk 0:00:02]} 30. Rxc8+ {[%clk 0:00:54]}  Qxc8 {[%clk 0:00:02]} 31. Rd4 {[%clk 0:00:53]}  Nf8 {[%clk 0:00:01]} 32. Rd8 {[%clk 0:00:43]}  Qc6 {[%clk 0:00:01]} 33. Rxf8+ {[%clk 0:00:42]}  Kxf8 {[%clk 0:00:01]} 34. Qxh8+ {[%clk 0:00:43]}  Ke7 {[%clk 0:00:02]} 35. Bg5+ {[%clk 0:00:43]}  Kd7 {[%clk 0:00:02]} 36. Qd8# {[%clk 0:00:43]} 1-0


[Site "https://www.chess.com"]